[Event "Titled Tuesday Blitz April 12 Late 2022"]
[White "Rozman, Levy"]
[Black "Alekseenko, Kirill"]
[WhiteFideId "2039877"]
[BlackFideId "4135539"]
[WhiteElo "2376"]
[BlackElo "2682"]
[Result "1-0"]
[Round "09"]
[TimeControl "180+1"]
[Date "2022.04.12"]
[WhiteClock "0:00:03"]
[BlackClock "0:00:17"]

1. d4 {[%clk 0:03:00]}  d5 {[%clk 0:03:00]} 2. c4 {[%clk 0:03:00]}  dxc4 {[%clk 0:03:00]} 3. Nf3 {[%clk 0:02:57]}  a6 {[%clk 0:03:01]} 4. e4 {[%clk 0:02:55]}  b5 {[%clk 0:03:00]} 5. a4 {[%clk 0:02:55]}  Bb7 {[%clk 0:03:01]} 6. Nc3 {[%clk 0:02:55]}  b4 {[%clk 0:03:01]} 7. Bxc4 {[%clk 0:02:54]}  e6 {[%clk 0:02:58]} 8. Qb3 {[%clk 0:02:52]}  Nc6 {[%clk 0:02:56]} 9. a5 {[%clk 0:02:50]}  bxc3 {[%clk 0:01:50]} 10. Qxb7 {[%clk 0:02:45]}  Nb4 {[%clk 0:01:50]} 11. O-O {[%clk 0:01:57]}  Rb8 {[%clk 0:01:44]} 12. Qa7 {[%clk 0:01:57]}  cxb2 {[%clk 0:01:18]} 13. Bxb2 {[%clk 0:01:54]}  Nf6 {[%clk 0:01:19]} 14. d5 {[%clk 0:01:40]}  exd5 {[%clk 0:01:19]} 15. Bxf6 {[%clk 0:01:36]}  gxf6 {[%clk 0:01:19]} 16. exd5 {[%clk 0:01:27]}  Bd6 {[%clk 0:01:12]} 17. Rfe1+ {[%clk 0:01:22]}  Kf8 {[%clk 0:01:13]} 18. Qe3 {[%clk 0:01:09]}  Kg7 {[%clk 0:01:13]} 19. Nd4 {[%clk 0:00:54]}  Rg8 {[%clk 0:01:12]} 20. Nf5+ {[%clk 0:00:39]}  Kh8 {[%clk 0:01:12]} 21. Rac1 {[%clk 0:00:35]}  Rg5 {[%clk 0:01:11]} 22. Bd3 {[%clk 0:00:27]}  Nxd5 {[%clk 0:01:03]} 23. Qf3 {[%clk 0:00:15]}  Nf4 {[%clk 0:00:53]} 24. g3 {[%clk 0:00:16]}  Be5 {[%clk 0:00:42]} 25. Be4 {[%clk 0:00:15]}  Rb2 {[%clk 0:00:38]} 26. Rc2 {[%clk 0:00:13]}  Rxc2 {[%clk 0:00:26]} 27. Bxc2 {[%clk 0:00:14]}  Qd2 {[%clk 0:00:24]} 28. Rd1 {[%clk 0:00:14]}  Qb4 {[%clk 0:00:08]} 29. Rd8+ {[%clk 0:00:13]}  Rg8 {[%clk 0:00:09]} 30. Rxg8+ {[%clk 0:00:14]}  Kxg8 {[%clk 0:00:09]} 31. Qa8+ {[%clk 0:00:14]}  Qf8 {[%clk 0:00:10]} 32. Qxf8+ {[%clk 0:00:09]}  Kxf8 {[%clk 0:00:11]} 33. gxf4 {[%clk 0:00:09]}  Bxf4 {[%clk 0:00:12]} 34. Bd3 {[%clk 0:00:08]}  Bd2 {[%clk 0:00:13]} 35. Bxa6 {[%clk 0:00:07]}  Bxa5 {[%clk 0:00:14]} 36. f3 {[%clk 0:00:06]}  c5 {[%clk 0:00:14]} 37. Bc4 {[%clk 0:00:04]}  Bc7 {[%clk 0:00:15]} 38. h4 {[%clk 0:00:04]}  Bf4 {[%clk 0:00:15]} 39. h5 {[%clk 0:00:04]}  Ke8 {[%clk 0:00:14]} 40. Kf2 {[%clk 0:00:03]}  h6 {[%clk 0:00:15]} 41. Ke2 {[%clk 0:00:03]}  Kd7 {[%clk 0:00:14]} 42. Bxf7 {[%clk 0:00:03]}  Kc6 {[%clk 0:00:15]} 43. Kd3 {[%clk 0:00:04]}  Kb5 {[%clk 0:00:15]} 44. Ke4 {[%clk 0:00:02]}  Bd2 {[%clk 0:00:15]} 45. f4 {[%clk 0:00:02]}  c4 {[%clk 0:00:16]} 46. Nd4+ {[%clk 0:00:02]}  Kb4 {[%clk 0:00:16]} 47. Nc6+ {[%clk 0:00:03]}  Kc5 {[%clk 0:00:15]} 48. Nd4 {[%clk 0:00:01]}  c3 {[%clk 0:00:16]} 49. Kd3 {[%clk 0:00:02]}  Bxf4 {[%clk 0:00:15]} 50. Ne6+ {[%clk 0:00:02]}  Kd6 {[%clk 0:00:15]} 51. Nxf4 {[%clk 0:00:03]}  Ke5 {[%clk 0:00:16]} 52. Ne2 {[%clk 0:00:03]}  f5 {[%clk 0:00:14]} 53. Nxc3 {[%clk 0:00:03]}  f4 {[%clk 0:00:15]} 54. Bg6 {[%clk 0:00:02]}  Kf6 {[%clk 0:00:14]} 55. Ke4 {[%clk 0:00:03]}  Kg5 {[%clk 0:00:15]} 56. Nd1 {[%clk 0:00:02]}  Kg4 {[%clk 0:00:16]} 57. Nf2+ {[%clk 0:00:02]}  Kg3 {[%clk 0:00:16]} 58. Nd3 {[%clk 0:00:02]}  f3 {[%clk 0:00:17]} 59. Ke3 {[%clk 0:00:03]}  Kg4 {[%clk 0:00:16]} 60. Nf2+ {[%clk 0:00:03]}  Kg3 {[%clk 0:00:17]} 61. Nd1 {[%clk 0:00:03]}  Kg2 {[%clk 0:00:17]} 62. Be4 {[%clk 0:00:03]} 1-0


[Site "https://www.chess.com"]

[Event "Titled Tuesday Blitz April 12 Late 2022"]
[White "Santos Ruiz, Miguel"]
[Black "Djokic, Mihailo"]
[WhiteFideId "22291482"]
[BlackFideId "976440"]
[WhiteElo "2486"]
[BlackElo "2202"]
[Result "1-0"]
[Round "09"]
[TimeControl "180+1"]
[Date "2022.04.12"]
[WhiteClock "0:00:35"]
[BlackClock "0:00:08"]

1. d4 {[%clk 0:03:00]}  Nf6 {[%clk 0:02:56]} 2. Nf3 {[%clk 0:03:00]}  g6 {[%clk 0:02:56]} 3. b3 {[%clk 0:02:55]}  Bg7 {[%clk 0:02:56]} 4. Bb2 {[%clk 0:02:55]}  O-O {[%clk 0:02:55]} 5. e3 {[%clk 0:02:56]}  d6 {[%clk 0:02:52]} 6. Be2 {[%clk 0:02:55]}  b6 {[%clk 0:02:48]} 7. c4 {[%clk 0:02:48]}  Bb7 {[%clk 0:02:48]} 8. Nc3 {[%clk 0:02:48]}  Nbd7 {[%clk 0:02:47]} 9. Qc2 {[%clk 0:02:45]}  e5 {[%clk 0:02:45]} 10. O-O-O {[%clk 0:02:37]}  exd4 {[%clk 0:02:43]} 11. Nxd4 {[%clk 0:02:35]}  Re8 {[%clk 0:02:41]} 12. Bf3 {[%clk 0:02:34]}  Bxf3 {[%clk 0:02:39]} 13. gxf3 {[%clk 0:02:34]}  Nc5 {[%clk 0:02:35]} 14. h4 {[%clk 0:02:32]}  Qd7 {[%clk 0:02:32]} 15. Rdg1 {[%clk 0:02:30]}  h5 {[%clk 0:02:28]} 16. f4 {[%clk 0:02:28]}  Nce4 {[%clk 0:02:27]} 17. Nxe4 {[%clk 0:02:10]}  Nxe4 {[%clk 0:02:23]} 18. f5 {[%clk 0:02:09]}  c5 {[%clk 0:02:20]} 19. Ne6 {[%clk 0:01:41]}  Bxb2+ {[%clk 0:01:08]} 20. Kxb2 {[%clk 0:01:31]}  Rxe6 {[%clk 0:01:08]} 21. fxe6 {[%clk 0:01:31]}  Qxe6 {[%clk 0:01:08]} 22. Kc1 {[%clk 0:01:28]}  Qe5 {[%clk 0:01:04]} 23. Qb2 {[%clk 0:01:25]}  Qxb2+ {[%clk 0:01:02]} 24. Kxb2 {[%clk 0:01:25]}  Nxf2 {[%clk 0:01:02]} 25. Rh2 {[%clk 0:01:26]}  Ng4 {[%clk 0:00:59]} 26. Rd2 {[%clk 0:01:25]}  Rd8 {[%clk 0:00:49]} 27. e4 {[%clk 0:01:21]}  Re8 {[%clk 0:00:42]} 28. Rxd6 {[%clk 0:01:17]}  Rxe4 {[%clk 0:00:41]} 29. a4 {[%clk 0:01:07]}  Ne5 {[%clk 0:00:37]} 30. a5 {[%clk 0:01:01]}  Kh7 {[%clk 0:00:25]} 31. a6 {[%clk 0:01:01]}  Rxh4 {[%clk 0:00:18]} 32. Rxb6 {[%clk 0:00:55]}  Rh2+ {[%clk 0:00:15]} 33. Kb1 {[%clk 0:00:37]}  Nf3 {[%clk 0:00:09]} 34. Rd1 {[%clk 0:00:35]}  Nd2+ {[%clk 0:00:08]} 35. Kc1 {[%clk 0:00:35]}  Nxb3+ {[%clk 0:00:08]} 36. Rxb3 {[%clk 0:00:35]} 1-0


[Site "https://www.chess.com"]

[Event "Titled Tuesday Blitz April 12 Late 2022"]
[White "Soysal, Serkan"]
[Black "Bas Mas, Jose Joaquin"]
[WhiteFideId "6349250"]
[BlackFideId "22219064"]
[WhiteElo "2440"]
[BlackElo "2212"]
[Result "1-0"]
[Round "09"]
[TimeControl "180+1"]
[Date "2022.04.13"]
[WhiteClock "0:00:55"]
[BlackClock "0:00:21"]

1. d4 {[%clk 0:03:00]}  f5 {[%clk 0:02:59]} 2. Nc3 {[%clk 0:02:58]}  Nf6 {[%clk 0:02:58]} 3. Bg5 {[%clk 0:02:55]}  d5 {[%clk 0:02:58]} 4. Bxf6 {[%clk 0:02:55]}  exf6 {[%clk 0:02:59]} 5. e3 {[%clk 0:02:55]}  Be6 {[%clk 0:02:58]} 6. Bd3 {[%clk 0:02:54]}  Qd7 {[%clk 0:02:57]} 7. Qf3 {[%clk 0:02:53]}  Nc6 {[%clk 0:02:55]} 8. a3 {[%clk 0:02:50]}  g6 {[%clk 0:02:53]} 9. Nge2 {[%clk 0:02:48]}  O-O-O {[%clk 0:02:51]} 10. h3 {[%clk 0:02:41]}  Kb8 {[%clk 0:02:46]} 11. Nf4 {[%clk 0:02:39]}  Bf7 {[%clk 0:02:46]} 12. g4 {[%clk 0:02:39]}  fxg4 {[%clk 0:02:34]} 13. hxg4 {[%clk 0:02:40]}  Ne7 {[%clk 0:02:29]} 14. O-O-O {[%clk 0:02:27]}  c6 {[%clk 0:02:27]} 15. e4 {[%clk 0:02:23]}  dxe4 {[%clk 0:02:22]} 16. Bxe4 {[%clk 0:02:24]}  f5 {[%clk 0:01:48]} 17. gxf5 {[%clk 0:02:22]}  Nxf5 {[%clk 0:01:47]} 18. d5 {[%clk 0:02:15]}  c5 {[%clk 0:01:42]} 19. Ne6 {[%clk 0:02:07]}  Nd4 {[%clk 0:00:53]} 20. Rxd4 {[%clk 0:01:29]}  cxd4 {[%clk 0:00:50]} 21. Nxd8 {[%clk 0:01:29]}  Qxd8 {[%clk 0:00:38]} 22. Qxf7 {[%clk 0:01:10]}  dxc3 {[%clk 0:00:35]} 23. d6 {[%clk 0:01:08]}  Qg5+ {[%clk 0:00:22]} 24. Kb1 {[%clk 0:01:04]}  Qb5 {[%clk 0:00:21]} 25. Qc7+ {[%clk 0:00:55]} 1-0


[Site "https://www.chess.com"]

[Event "Titled Tuesday Blitz April 12 Late 2022"]
[White "Svane, Frederik"]
[Black "Koziorowicz, Michal"]
[WhiteFideId "12923044"]
[BlackFideId "21809194"]
[WhiteElo "2459"]
[BlackElo "2235"]
[Result "0-1"]
[Round "09"]
[TimeControl "180+1"]
[Date "2022.04.12"]
[WhiteClock "0:00:07"]
[BlackClock "0:01:38"]

1. d4 {[%clk 0:03:00]}  f5 {[%clk 0:02:58]} 2. g3 {[%clk 0:03:00]}  Nf6 {[%clk 0:02:58]} 3. Bg2 {[%clk 0:03:00]}  e6 {[%clk 0:02:59]} 4. Nf3 {[%clk 0:03:00]}  Be7 {[%clk 0:03:00]} 5. O-O {[%clk 0:03:00]}  O-O {[%clk 0:03:00]} 6. c4 {[%clk 0:03:01]}  d6 {[%clk 0:02:59]} 7. b3 {[%clk 0:03:00]}  Qe8 {[%clk 0:02:57]} 8. Bb2 {[%clk 0:02:59]}  Bd8 {[%clk 0:02:56]} 9. Re1 {[%clk 0:02:58]}  Nc6 {[%clk 0:02:55]} 10. Nc3 {[%clk 0:02:56]}  e5 {[%clk 0:02:54]} 11. e4 {[%clk 0:02:47]}  f4 {[%clk 0:02:52]} 12. c5 {[%clk 0:02:26]}  fxg3 {[%clk 0:02:39]} 13. hxg3 {[%clk 0:01:58]}  Bg4 {[%clk 0:02:39]} 14. Nd5 {[%clk 0:01:47]}  Qh5 {[%clk 0:02:31]} 15. Ne3 {[%clk 0:01:46]}  exd4 {[%clk 0:02:23]} 16. Nxg4 {[%clk 0:01:44]}  Nxg4 {[%clk 0:02:20]} 17. cxd6 {[%clk 0:01:44]}  Nce5 {[%clk 0:02:03]} 18. Bxd4 {[%clk 0:01:44]}  cxd6 {[%clk 0:02:04]} 19. Bxe5 {[%clk 0:01:42]}  dxe5 {[%clk 0:02:03]} 20. Rc1 {[%clk 0:00:44]}  Bb6 {[%clk 0:02:03]} 21. Rc2 {[%clk 0:00:45]}  Rad8 {[%clk 0:01:43]} 22. Qc1 {[%clk 0:00:43]}  Rd3 {[%clk 0:01:43]} 23. Nh4 {[%clk 0:00:12]}  Rxg3 {[%clk 0:01:41]} 24. Rc8 {[%clk 0:00:06]}  Bxf2+ {[%clk 0:01:39]} 25. Kf1 {[%clk 0:00:07]}  Nh2# {[%clk 0:01:38]} 0-1


[Site "https://www.chess.com"]

[Event "Titled Tuesday Blitz April 12 Late 2022"]
[White "Svane, Rasmus"]
[Black "Holt, Conrad"]
[WhiteFideId "4657101"]
[BlackFideId "2034387"]
[WhiteElo "2645"]
[BlackElo "2586"]
[Result "1-0"]
[Round "09"]
[TimeControl "180+1"]
[Date "2022.04.12"]
[WhiteClock "0:00:40"]
[BlackClock "0:00:02"]

1. Nf3 {[%clk 0:03:00]}  d5 {[%clk 0:02:55]} 2. g3 {[%clk 0:03:01]}  Bg4 {[%clk 0:02:54]} 3. Bg2 {[%clk 0:03:01]}  Nd7 {[%clk 0:02:54]} 4. O-O {[%clk 0:03:01]}  e6 {[%clk 0:02:54]} 5. h3 {[%clk 0:03:02]}  Bxf3 {[%clk 0:02:53]} 6. Bxf3 {[%clk 0:03:03]}  Bd6 {[%clk 0:02:53]} 7. e4 {[%clk 0:02:54]}  c6 {[%clk 0:02:44]} 8. d4 {[%clk 0:02:53]}  dxe4 {[%clk 0:02:44]} 9. Bxe4 {[%clk 0:02:54]}  Ngf6 {[%clk 0:02:43]} 10. Bg2 {[%clk 0:02:54]}  O-O {[%clk 0:02:43]} 11. Nd2 {[%clk 0:02:53]}  Nb6 {[%clk 0:02:37]} 12. c3 {[%clk 0:02:51]}  Qc7 {[%clk 0:02:28]} 13. Nf3 {[%clk 0:02:48]}  h6 {[%clk 0:02:20]} 14. a4 {[%clk 0:02:43]}  Rad8 {[%clk 0:02:16]} 15. a5 {[%clk 0:02:40]}  Nc4 {[%clk 0:02:14]} 16. Qa4 {[%clk 0:02:37]}  b5 {[%clk 0:02:13]} 17. axb6 {[%clk 0:02:37]}  Nxb6 {[%clk 0:02:14]} 18. Qxa7 {[%clk 0:02:34]}  Nfd5 {[%clk 0:02:09]} 19. Qxc7 {[%clk 0:02:33]}  Bxc7 {[%clk 0:02:09]} 20. Nd2 {[%clk 0:02:19]}  Ra8 {[%clk 0:02:04]} 21. Rxa8 {[%clk 0:01:59]}  Rxa8 {[%clk 0:02:05]} 22. Be4 {[%clk 0:01:58]}  Ra2 {[%clk 0:01:27]} 23. Bb1 {[%clk 0:01:55]}  Ra1 {[%clk 0:01:26]} 24. Bd3 {[%clk 0:01:55]}  Na4 {[%clk 0:01:02]} 25. Nb3 {[%clk 0:01:52]}  Ra2 {[%clk 0:01:00]} 26. Bb1 {[%clk 0:01:52]}  Rxb2 {[%clk 0:01:00]} 27. Bxb2 {[%clk 0:01:52]}  Nxb2 {[%clk 0:01:01]} 28. Rc1 {[%clk 0:01:44]}  e5 {[%clk 0:00:59]} 29. Be4 {[%clk 0:01:40]}  Kf8 {[%clk 0:00:51]} 30. dxe5 {[%clk 0:01:07]}  Bxe5 {[%clk 0:00:50]} 31. Nd4 {[%clk 0:01:07]}  Nxc3 {[%clk 0:00:39]} 32. Rxc3 {[%clk 0:01:08]}  Bxd4 {[%clk 0:00:39]} 33. Rxc6 {[%clk 0:01:09]}  Be5 {[%clk 0:00:22]} 34. f4 {[%clk 0:01:08]}  Bd4+ {[%clk 0:00:19]} 35. Kg2 {[%clk 0:01:07]}  Nd1 {[%clk 0:00:19]} 36. Rd6 {[%clk 0:01:00]}  Ne3+ {[%clk 0:00:19]} 37. Kf3 {[%clk 0:01:00]}  Bc5 {[%clk 0:00:19]} 38. Rc6 {[%clk 0:00:57]}  Bd4 {[%clk 0:00:19]} 39. Rc7 {[%clk 0:00:53]}  g6 {[%clk 0:00:14]} 40. Bb1 {[%clk 0:00:44]}  Bb6 {[%clk 0:00:08]} 41. Rb7 {[%clk 0:00:41]}  Bc5 {[%clk 0:00:02]} 42. Ba2 {[%clk 0:00:41]}  f5 {[%clk 0:00:02]} 43. Rf7+ {[%clk 0:00:39]}  Ke8 {[%clk 0:00:02]} 44. Rg7 {[%clk 0:00:40]} 1-0


[Site "https://www.chess.com"]

[Event "Titled Tuesday Blitz April 12 Late 2022"]
[White "Vusatiuk, Vladimir"]
[Black "Kosteniuk, Alexandra"]
[WhiteFideId "14118610"]
[BlackFideId "4128125"]
[WhiteElo "2157"]
[BlackElo "2469"]
[Result "0-1"]
[Round "09"]
[TimeControl "180+1"]
[Date "2022.04.12"]
[WhiteClock "0:00:03"]
[BlackClock "0:00:41"]

1. d4 {[%clk 0:02:59]}  Nf6 {[%clk 0:02:59]} 2. c4 {[%clk 0:02:57]}  e6 {[%clk 0:03:00]} 3. Nc3 {[%clk 0:02:55]}  Bb4 {[%clk 0:02:59]} 4. e3 {[%clk 0:02:56]}  b6 {[%clk 0:02:57]} 5. Nf3 {[%clk 0:02:51]}  Ne4 {[%clk 0:02:55]} 6. Qc2 {[%clk 0:02:47]}  Bb7 {[%clk 0:02:54]} 7. Bd3 {[%clk 0:02:45]}  f5 {[%clk 0:02:50]} 8. O-O {[%clk 0:02:43]}  Bxc3 {[%clk 0:02:37]} 9. bxc3 {[%clk 0:02:42]}  O-O {[%clk 0:02:37]} 10. Nd2 {[%clk 0:02:28]}  Ng5 {[%clk 0:02:35]} 11. f4 {[%clk 0:02:09]}  Nf7 {[%clk 0:02:35]} 12. Ba3 {[%clk 0:02:04]}  d6 {[%clk 0:02:34]} 13. e4 {[%clk 0:02:03]}  Nh6 {[%clk 0:02:25]} 14. c5 {[%clk 0:01:43]}  dxc5 {[%clk 0:02:21]} 15. dxc5 {[%clk 0:01:31]}  Nd7 {[%clk 0:02:19]} 16. c6 {[%clk 0:01:22]}  Bxc6 {[%clk 0:02:18]} 17. Bxf8 {[%clk 0:01:23]}  Qxf8 {[%clk 0:02:18]} 18. exf5 {[%clk 0:01:19]}  exf5 {[%clk 0:02:14]} 19. Nf3 {[%clk 0:01:15]}  Nc5 {[%clk 0:01:59]} 20. Nd4 {[%clk 0:01:08]}  Nxd3 {[%clk 0:01:48]} 21. Nxc6 {[%clk 0:01:03]}  Nc5 {[%clk 0:01:44]} 22. Rae1 {[%clk 0:00:56]}  Re8 {[%clk 0:01:40]} 23. Rxe8 {[%clk 0:00:48]}  Qxe8 {[%clk 0:01:41]} 24. Ne5 {[%clk 0:00:48]}  Qe6 {[%clk 0:01:36]} 25. Rd1 {[%clk 0:00:47]}  Nf7 {[%clk 0:01:33]} 26. Nxf7 {[%clk 0:00:35]}  Kxf7 {[%clk 0:01:33]} 27. Qd2 {[%clk 0:00:28]}  c6 {[%clk 0:01:23]} 28. h3 {[%clk 0:00:25]}  h6 {[%clk 0:01:22]} 29. Kh2 {[%clk 0:00:24]}  Qc4 {[%clk 0:01:16]} 30. Qd6 {[%clk 0:00:20]}  Ne6 {[%clk 0:01:14]} 31. Re1 {[%clk 0:00:17]}  Qxf4+ {[%clk 0:01:11]} 32. Qxf4 {[%clk 0:00:16]}  Nxf4 {[%clk 0:01:12]} 33. Rf1 {[%clk 0:00:16]}  g5 {[%clk 0:01:11]} 34. g3 {[%clk 0:00:17]}  Nd5 {[%clk 0:01:12]} 35. Rxf5+ {[%clk 0:00:17]}  Ke6 {[%clk 0:01:12]} 36. Rf3 {[%clk 0:00:16]}  b5 {[%clk 0:01:12]} 37. Kg2 {[%clk 0:00:14]}  a5 {[%clk 0:01:11]} 38. Kf2 {[%clk 0:00:15]}  h5 {[%clk 0:01:09]} 39. Ke2 {[%clk 0:00:14]}  g4 {[%clk 0:01:10]} 40. hxg4 {[%clk 0:00:15]}  hxg4 {[%clk 0:01:11]} 41. Rd3 {[%clk 0:00:14]}  c5 {[%clk 0:01:08]} 42. Kd2 {[%clk 0:00:12]}  Ke5 {[%clk 0:01:07]} 43. Kc2 {[%clk 0:00:11]}  Ke4 {[%clk 0:01:05]} 44. Rd2 {[%clk 0:00:11]}  Ne3+ {[%clk 0:01:04]} 45. Kc1 {[%clk 0:00:08]}  Nf5 {[%clk 0:01:01]} 46. Rd8 {[%clk 0:00:05]}  Nxg3 {[%clk 0:01:00]} 47. Rg8 {[%clk 0:00:04]}  Kf4 {[%clk 0:00:57]} 48. Rc8 {[%clk 0:00:03]}  Ne4 {[%clk 0:00:57]} 49. Rf8+ {[%clk 0:00:03]}  Ke3 {[%clk 0:00:56]} 50. Rg8 {[%clk 0:00:03]}  g3 {[%clk 0:00:57]} 51. c4 {[%clk 0:00:03]}  bxc4 {[%clk 0:00:57]} 52. Kc2 {[%clk 0:00:03]}  Kf3 {[%clk 0:00:44]} 53. Rf8+ {[%clk 0:00:04]}  Kg4 {[%clk 0:00:44]} 54. Rg8+ {[%clk 0:00:03]}  Ng5 {[%clk 0:00:43]} 55. Rb8 {[%clk 0:00:03]}  g2 {[%clk 0:00:42]} 56. Rb1 {[%clk 0:00:03]}  Ne4 {[%clk 0:00:42]} 57. Rg1 {[%clk 0:00:02]}  Kf3 {[%clk 0:00:42]} 58. a4 {[%clk 0:00:02]}  Kf2 {[%clk 0:00:42]} 59. Rc1 {[%clk 0:00:02]}  g1=Q {[%clk 0:00:41]} 60. Rxg1 {[%clk 0:00:03]}  Kxg1 {[%clk 0:00:41]} 0-1


[Site "https://www.chess.com"]

[Event "Titled Tuesday Blitz April 12 Late 2022"]
[White "Yedidia, Daniel"]
[Black "Ronka, Erik"]
[WhiteFideId "30905907"]
[BlackFideId "505080"]
[WhiteElo "2601"]
[BlackElo "2264"]
[Result "0-1"]
[Round "09"]
[TimeControl "180+1"]
[Date "2022.04.13"]
[WhiteClock "0:00:05"]
[BlackClock "0:00:14"]

1. d4 {[%clk 0:03:00]}  d5 {[%clk 0:03:00]} 2. c4 {[%clk 0:03:00]}  c6 {[%clk 0:03:00]} 3. Nf3 {[%clk 0:03:00]}  Nf6 {[%clk 0:03:01]} 4. Nc3 {[%clk 0:03:00]}  e6 {[%clk 0:03:01]} 5. e3 {[%clk 0:03:00]}  Nbd7 {[%clk 0:03:02]} 6. Bd3 {[%clk 0:02:58]}  dxc4 {[%clk 0:03:01]} 7. Bxc4 {[%clk 0:02:59]}  b5 {[%clk 0:03:02]} 8. Be2 {[%clk 0:03:00]}  a6 {[%clk 0:02:59]} 9. e4 {[%clk 0:02:59]}  b4 {[%clk 0:02:40]} 10. e5 {[%clk 0:03:00]}  bxc3 {[%clk 0:02:41]} 11. exf6 {[%clk 0:03:00]}  cxb2 {[%clk 0:02:41]} 12. fxg7 {[%clk 0:03:00]}  bxa1=Q {[%clk 0:02:34]} 13. gxh8=Q {[%clk 0:02:59]}  Qa5+ {[%clk 0:02:08]} 14. Bd2 {[%clk 0:02:41]}  Qxd1+ {[%clk 0:02:07]} 15. Bxd1 {[%clk 0:02:40]}  Qf5 {[%clk 0:01:51]} 16. O-O {[%clk 0:02:34]}  Bb7 {[%clk 0:01:51]} 17. Bg5 {[%clk 0:02:10]}  f6 {[%clk 0:01:35]} 18. Bh4 {[%clk 0:02:05]}  O-O-O {[%clk 0:01:32]} 19. Qg8 {[%clk 0:02:03]}  Bd6 {[%clk 0:01:12]} 20. Qg7 {[%clk 0:01:48]}  Re8 {[%clk 0:00:45]} 21. Ba4 {[%clk 0:01:39]}  Re7 {[%clk 0:00:44]} 22. Qh8+ {[%clk 0:01:38]}  Kc7 {[%clk 0:00:45]} 23. h3 {[%clk 0:01:05]}  Qg6 {[%clk 0:00:39]} 24. Ne5 {[%clk 0:00:25]}  Bxe5 {[%clk 0:00:27]} 25. Bc2 {[%clk 0:00:18]}  f5 {[%clk 0:00:17]} 26. dxe5 {[%clk 0:00:06]}  Re8 {[%clk 0:00:17]} 27. Qf6 {[%clk 0:00:03]}  Nxf6 {[%clk 0:00:17]} 28. exf6 {[%clk 0:00:03]}  c5 {[%clk 0:00:16]} 29. f3 {[%clk 0:00:03]}  Rf8 {[%clk 0:00:13]} 30. Bb3 {[%clk 0:00:03]}  Rxf6 {[%clk 0:00:13]} 31. Bxf6 {[%clk 0:00:03]}  Qxf6 {[%clk 0:00:14]} 32. Re1 {[%clk 0:00:04]}  Bd5 {[%clk 0:00:14]} 33. Ba4 {[%clk 0:00:04]}  c4 {[%clk 0:00:13]} 34. Rf1 {[%clk 0:00:03]}  c3 {[%clk 0:00:13]} 35. Kh2 {[%clk 0:00:03]}  Qe5+ {[%clk 0:00:13]} 36. Kh1 {[%clk 0:00:03]}  Qd4 {[%clk 0:00:14]} 37. Rc1 {[%clk 0:00:04]}  Qxa4 {[%clk 0:00:13]} 38. Rxc3+ {[%clk 0:00:05]}  Bc6 {[%clk 0:00:14]} 0-1


[Site "https://www.chess.com"]

[Event "Titled Tuesday Blitz April 12 Late 2022"]
[White "Zhou, Qiyu"]
[Black "Noboa Silva, Kevin"]
[WhiteFideId "505161"]
[BlackFideId "3618471"]
[WhiteElo "1925"]
[BlackElo "2172"]
[Result "0-1"]
[Round "09"]
[TimeControl "180+1"]
[Date "2022.04.13"]
[WhiteClock "0:00:25"]
[BlackClock "0:00:40"]

1. e4 {[%clk 0:03:00]}  c5 {[%clk 0:02:57]} 2. Nf3 {[%clk 0:02:59]}  e6 {[%clk 0:02:57]} 3. d4 {[%clk 0:02:59]}  cxd4 {[%clk 0:02:58]} 4. Nxd4 {[%clk 0:02:59]}  Nc6 {[%clk 0:02:59]} 5. Nc3 {[%clk 0:02:58]}  a6 {[%clk 0:02:57]} 6. a3 {[%clk 0:02:54]}  Nf6 {[%clk 0:02:55]} 7. Be3 {[%clk 0:02:53]}  Be7 {[%clk 0:02:44]} 8. Be2 {[%clk 0:02:47]}  O-O {[%clk 0:02:40]} 9. O-O {[%clk 0:02:46]}  Qc7 {[%clk 0:02:28]} 10. h3 {[%clk 0:02:43]}  b5 {[%clk 0:02:24]} 11. Qd2 {[%clk 0:02:40]}  Bb7 {[%clk 0:02:21]} 12. Rad1 {[%clk 0:02:29]}  Nxd4 {[%clk 0:02:17]} 13. Bxd4 {[%clk 0:02:29]}  Nxe4 {[%clk 0:02:15]} 14. Nxe4 {[%clk 0:02:24]}  Bxe4 {[%clk 0:02:16]} 15. c3 {[%clk 0:02:21]}  d5 {[%clk 0:02:12]} 16. f3 {[%clk 0:02:18]}  Bg6 {[%clk 0:02:12]} 17. f4 {[%clk 0:02:18]}  Bc5 {[%clk 0:02:10]} 18. Kh1 {[%clk 0:02:05]}  Bxd4 {[%clk 0:02:09]} 19. Qxd4 {[%clk 0:02:06]}  Be4 {[%clk 0:02:09]} 20. Bf3 {[%clk 0:02:01]}  Qxf4 {[%clk 0:02:05]} 21. Bxe4 {[%clk 0:01:35]}  Qxe4 {[%clk 0:02:04]} 22. Qf2 {[%clk 0:01:35]}  Qg6 {[%clk 0:01:52]} 23. Rd4 {[%clk 0:01:30]}  f5 {[%clk 0:01:42]} 24. Re1 {[%clk 0:01:29]}  Rae8 {[%clk 0:01:39]} 25. Re5 {[%clk 0:01:27]}  Qf6 {[%clk 0:01:38]} 26. Qe1 {[%clk 0:01:24]}  f4 {[%clk 0:01:36]} 27. Rdxd5 {[%clk 0:01:19]}  f3 {[%clk 0:01:35]} 28. gxf3 {[%clk 0:00:56]}  Qxf3+ {[%clk 0:01:34]} 29. Kg1 {[%clk 0:00:56]}  Qxh3 {[%clk 0:01:03]} 30. Rd4 {[%clk 0:00:48]}  Rf6 {[%clk 0:00:50]} 31. Rg5 {[%clk 0:00:43]}  Ref8 {[%clk 0:00:44]} 32. Rd1 {[%clk 0:00:24]}  Rf1+ {[%clk 0:00:39]} 33. Qxf1 {[%clk 0:00:25]}  Rxf1+ {[%clk 0:00:40]} 34. Rxf1 {[%clk 0:00:25]}  Qe3+ {[%clk 0:00:40]} 0-1


[Site "https://www.chess.com"]

[Event "Titled Tuesday Blitz April 12 Late 2022"]
[White "profaVa"]
[Black "Tanenbaum, Zachary"]
[BlackFideId "2060850"]
[WhiteElo "2410"]
[BlackElo "2168"]
[Result "0-1"]
[Round "09"]
[TimeControl "180+1"]
[Date "2022.04.13"]
[WhiteClock "0:00:03"]
[BlackClock "0:01:28"]

1. e4 {[%clk 0:02:59]}  e5 {[%clk 0:03:00]} 2. Bc4 {[%clk 0:02:58]}  Nc6 {[%clk 0:03:01]} 3. d3 {[%clk 0:02:57]}  Nf6 {[%clk 0:03:01]} 4. Nc3 {[%clk 0:02:56]}  Na5 {[%clk 0:03:01]} 5. f4 {[%clk 0:02:55]}  Nxc4 {[%clk 0:02:58]} 6. dxc4 {[%clk 0:02:56]}  Bb4 {[%clk 0:02:48]} 7. fxe5 {[%clk 0:02:53]}  Nxe4 {[%clk 0:02:45]} 8. Qf3 {[%clk 0:02:53]}  Nxc3 {[%clk 0:02:34]} 9. bxc3 {[%clk 0:02:53]}  Qh4+ {[%clk 0:02:28]} 10. g3 {[%clk 0:02:43]}  Qd4 {[%clk 0:02:01]} 11. Ne2 {[%clk 0:02:23]}  Qxe5 {[%clk 0:02:01]} 12. O-O {[%clk 0:02:21]}  Bc5+ {[%clk 0:02:01]} 13. Kh1 {[%clk 0:02:19]}  O-O {[%clk 0:01:59]} 14. Bf4 {[%clk 0:02:17]}  Qf6 {[%clk 0:01:57]} 15. Qh5 {[%clk 0:02:08]}  d6 {[%clk 0:01:54]} 16. Rae1 {[%clk 0:01:16]}  Bf5 {[%clk 0:01:42]} 17. Nd4 {[%clk 0:01:09]}  Bg6 {[%clk 0:01:36]} 18. Qd1 {[%clk 0:00:54]}  Rfe8 {[%clk 0:01:36]} 19. Nb3 {[%clk 0:00:38]}  Be4+ {[%clk 0:01:31]} 20. Rf3 {[%clk 0:00:08]}  Bxf3+ {[%clk 0:01:31]} 21. Qxf3 {[%clk 0:00:07]}  Rxe1+ {[%clk 0:01:31]} 22. Kg2 {[%clk 0:00:07]}  Rg1+ {[%clk 0:01:31]} 23. Kh3 {[%clk 0:00:08]}  Qf5+ {[%clk 0:01:30]} 24. Qg4 {[%clk 0:00:07]}  Qxg4+ {[%clk 0:01:29]} 25. Kxg4 {[%clk 0:00:07]}  Re8 {[%clk 0:01:28]} 26. h4 {[%clk 0:00:05]}  Rg2 {[%clk 0:01:27]} 27. Nxc5 {[%clk 0:00:04]}  dxc5 {[%clk 0:01:27]} 28. h5 {[%clk 0:00:04]}  Rxc2 {[%clk 0:01:28]} 29. h6 {[%clk 0:00:04]}  gxh6 {[%clk 0:01:27]} 30. Kh5 {[%clk 0:00:04]}  Rxc3 {[%clk 0:01:28]} 31. Bxc7 {[%clk 0:00:03]}  Rxc4 {[%clk 0:01:29]} 32. g4 {[%clk 0:00:03]}  Rce4 {[%clk 0:01:27]} 33. a4 {[%clk 0:00:02]}  c4 {[%clk 0:01:28]} 34. a5 {[%clk 0:00:02]}  c3 {[%clk 0:01:29]} 35. a6 {[%clk 0:00:03]}  bxa6 {[%clk 0:01:29]} 36. Be5 {[%clk 0:00:03]}  c2 {[%clk 0:01:30]} 37. g5 {[%clk 0:00:02]}  R8xe5 {[%clk 0:01:28]} 38. Kxh6 {[%clk 0:00:03]}  Rh4# {[%clk 0:01:28]} 0-1


[Site "https://www.chess.com"]